fUST/lending_fUST_20250530
["ID","MTS","AMOUNT","RATE_DAILY","PERIOD"]
[363090390,1748573451347,-573.46618323,0.00019783,2]
[363090392,1748573451357,-800.0,0.0001979,2]
[363090394,1748573451366,-1000.0,0.000198,2]
[363090396,1748573451375,-1000.0,0.000198,3]
[363090398,1748573451385,-151.0,0.000198,2]
[363090400,1748573451394,-800.0,0.00019801,2]
[363090402,1748573451404,-500.0,0.00019807,2]
[363090404,1748573451415,-500.0,0.00019807,2]
[363090406,1748573451424,-894.8264856,0.00019818,2]
[363090408,1748573451433,-151.0,0.00019824,2]
[363090410,1748573451442,-555.568175,0.00019824,2]
[363090412,1748573451452,-555.568175,0.00019824,2]
[363090414,1748573451461,-800.0,0.00019827,2]
[363090416,1748573451470,-500.0,0.00019835,2]
[363090418,1748573451480,-183.3498233,0.00019835,2]
[363090420,1748573451489,-160.0,0.00019888,2]
[363090422,1748573451499,-160.0,0.00019888,2]
[363090424,1748573451508,-151.0,0.00019898,2]
[363090426,1748573451517,-179.524897,0.00019898,2]
[363090428,1748573451527,-160.0,0.00019898,2]
[363090430,1748573451536,-229.30959854,0.00019898,2]
[363090432,1748573451547,-160.0,0.00019898,2]
[363090434,1748573451556,-212.7380601,0.00019898,2]
[363090436,1748573451566,-423.39538199,0.00019898,2]
[363090438,1748573451575,-160.0,0.00019898,2]
[363090440,1748573451586,-12663.11115519,0.00019898,2]
[363090442,1748573451596,-101.34998052,0.00019898,2]
[363090445,1748573451610,-58.65001948,0.00019898,2]
[363090447,1748573451619,-842.5625,0.00019898,2]
[363090449,1748573451628,-4692.09882105,0.000199,2]
[363090451,1748573451640,-877.14499275,0.000199,2]
[363090453,1748573451651,-891.85929846,0.000199,2]
[363090455,1748573451663,-500.0,0.000199,2]
[363090458,1748573451678,-1031.83050891,0.000199,2]
[363090460,1748573451690,-1797.56158219,0.000199,2]
[363090462,1748573451702,-4644.41303165,0.000199,2]
[363090465,1748573451714,-2497.08555903,0.000199,2]
[363090467,1748573451724,-260.507174,0.000199,2]
[363090469,1748573451734,-260.507174,0.000199,2]
[363090471,1748573451743,-151.0,0.000199,2]
[363090473,1748573451752,-1240.228968,0.000199,2]
[363090475,1748573451761,-674.14948569,0.000199,2]
[363090477,1748573451773,-287.70733921,0.000199,2]
[363090479,1748573451785,-278.3721431,0.000199,2]
[363090481,1748573451796,-167.59728729,0.000199,2]
[363090483,1748573451806,-1340.62949816,0.000199,2]
[363090485,1748573451815,-856.196143,0.000199,2]
[363090487,1748573451825,-856.196143,0.000199,2]
[363090489,1748573451835,-496.37,0.00019908,2]
[363090491,1748573451844,-420.0,0.00019921,2]
[363090493,1748573451854,-686.07954135,0.00019947,2]
[363090495,1748573451863,-700.0,0.00019964,2]
[363090497,1748573451872,-501.97805125,0.00019973,2]
[363090499,1748573451882,-500.0,0.00019973,2]
[363090501,1748573451891,-501.09840276,0.00019973,2]
[363090503,1748573451903,-17.96545125,0.00019973,2]
[363090506,1748573451914,-483.03156454,0.00019973,2]
[363090508,1748573451923,-501.93473979,0.00019973,2]
[363090510,1748573451932,-107.31369567,0.00019973,2]
[363090530,1748573452120,-430.0,0.00019178,2]
[363090532,1748573452130,-60.46702145,0.00019178,2]
[363090535,1748573452141,-369.53297855,0.00019178,2]
[363090537,1748573452151,-430.0,0.00019178,2]
[363090539,1748573452161,-470.0,0.00019452,2]
[363090541,1748573452170,-430.0,0.00019452,2]
[363090543,1748573452179,-430.0,0.00019452,2]
[363090545,1748573452188,-430.0,0.00019726,2]
[363090547,1748573452197,-151.0,0.00019726,2]
[363090549,1748573452206,-392.68630433,0.00019973,2]
[363090551,1748573452215,-503.84803972,0.00019973,2]
[363090553,1748573452224,-303.09852374,0.00019973,2]
[363090555,1748573452234,-500.0,0.00019973,2]
[363090557,1748573452243,-500.81117032,0.00019973,2]
[363090559,1748573452253,-500.26824289,0.00019973,2]
[363090561,1748573452262,-171.34321119,0.00019973,2]
[363090563,1748573452271,-501.20870617,0.00019973,2]
[363090565,1748573452280,-500.49838301,0.00019973,2]
[363090567,1748573452290,-151.3163909,0.00019973,2]
[363090569,1748573452299,-500.0,0.00019973,2]
[363090571,1748573452307,-500.56136787,0.00019973,2]
[363090573,1748573452316,-500.48388601,0.00019973,2]
[363090575,1748573452327,-500.0,0.00019973,2]
[363090577,1748573452335,-500.74863531,0.00019973,2]
[363090579,1748573452344,-500.47105921,0.00019973,2]
[363090581,1748573452354,-500.0,0.00019973,2]
[363090582,1748573452364,-500.31817662,0.00019973,2]
[363090584,1748573452374,-501.23994243,0.00019973,2]
[363090586,1748573452383,-500.0,0.00019973,2]
[363090588,1748573452392,-500.0,0.00019973,2]
[363090591,1748573452401,-500.71541538,0.00019973,2]
[363090601,1748573452493,-501.78316529,0.00019973,2]
[363090603,1748573452503,-166.52674738,0.00019973,2]
[363090606,1748573452513,-500.5672481,0.00019973,2]
[363090608,1748573452523,-300.20927747,0.00019973,2]
[363090610,1748573452533,-500.0,0.00019973,2]
[363090612,1748573452544,-501.17583991,0.00019973,2]
[363090613,1748573452555,-500.94701648,0.00019973,2]
[363090615,1748573452565,-501.61138456,0.00019973,2]
[363090616,1748573452576,-501.32202643,0.00019973,2]
[363090617,1748573452587,-501.36220263,0.00019973,2]
[363090618,1748573452596,-500.51007255,0.00019973,2]
[363090619,1748573452607,-501.43883291,0.00019973,2]
[363090620,1748573452618,-500.97867718,0.00019973,2]
[363090621,1748573452631,-500.0,0.00019973,2]
[363090622,1748573452641,-502.20784139,0.00019973,2]
[363090623,1748573452652,-500.38437342,0.00019973,2]
[363090624,1748573452662,-502.84354349,0.00019973,2]
[363090625,1748573452672,-600.0,0.00019973,2]
[363090626,1748573452682,-501.85733372,0.00019973,2]
[363090627,1748573452692,-500.0,0.00019973,2]
[363090628,1748573452703,-500.0,0.00019973,2]
[363090629,1748573452713,-439.46350087,0.00019973,2]
[363090630,1748573452724,-7974.37332273,0.00019997,3]
[363090631,1748573452734,-92775.57406398,0.00019997,2]
[363090632,1748573452744,-49985.88431541,0.00019997,2]
[363090633,1748573452758,-6883.92401368,0.00019997,2]
[363090634,1748573452769,-4139.83189452,0.00019997,2]
[363090637,1748573452781,-27267.27432753,0.00019997,2]
[363090667,1748573453086,-300.0,0.00018997,2]
[363090669,1748573453096,-42.1859121,0.00019178,2]
[363090672,1748573453114,-387.8140879,0.00019178,2]
[363090674,1748573453123,-430.0,0.00019178,2]
[363090676,1748573453133,-46.30094055,0.00019452,2]
[363090678,1748573453144,-383.69905945,0.00019452,2]
[363090680,1748573453156,-430.0,0.00019452,2]
[363090682,1748573453167,-430.0,0.00019726,2]
[363090684,1748573453177,-3351.30094048,0.00019997,2]
[363090689,1748573453211,-31.87986736,0.00019997,2]
[363090691,1748573453223,-1575.75627182,0.00019997,2]
[363090711,1748573453424,-3173.27010019,0.00018807,2]
[363090713,1748573453434,-432.99,0.00019178,2]
[363090714,1748573453444,-430.0,0.00019178,2]
[363090716,1748573453453,-430.0,0.00019178,2]
[363090718,1748573453463,-430.0,0.00019178,2]
[363090721,1748573453474,-430.0,0.00019178,2]
[363090722,1748573453484,-430.0,0.00019452,2]
[363090724,1748573453494,-430.0,0.00019452,2]
[363090727,1748573453505,-430.0,0.00019726,2]
[363090728,1748573453514,-430.0,0.00019726,2]
[363090730,1748573453524,-151.0,0.00019726,2]
[363090733,1748573453535,-11380.10512434,0.00019997,2]
[363090735,1748573453552,-705.1420001,0.00019997,2]
[363090737,1748573453564,-9856.33213789,0.00019997,2]
[363090739,1748573453576,-930.91769675,0.00019997,2]
[363090742,1748573453588,-2986.83644749,0.00019997,2]
[363090744,1748573453598,-151.0,0.00019997,2]
[363090746,1748573453609,-1770.766208,0.00019997,2]
[363090748,1748573453620,-151.0,0.00019997,2]
[363090750,1748573453629,-1770.766208,0.00019997,2]
[363090752,1748573453640,-151.0,0.00019997,2]
[363090754,1748573453650,-151.0,0.00019997,2]
[363090756,1748573453659,-151.0,0.00019997,2]
[363090758,1748573453669,-217.137971,0.00019997,2]
[363090760,1748573453679,-217.137971,0.00019997,2]
[363090761,1748573453689,-258.705516,0.00019997,2]
[363090764,1748573453700,-151.0,0.00019997,2]
[363090765,1748573453710,-151.0,0.00019997,2]
[363090767,1748573453720,-194.610595,0.00019997,2]
[363090770,1748573453730,-194.610595,0.00019997,2]
[363090772,1748573453741,-151.0,0.00019997,2]
[363090773,1748573453750,-539.834752,0.00019997,2]
[363090775,1748573453760,-539.834752,0.00019997,2]
[363090777,1748573453770,-151.0,0.00019997,2]
[363090779,1748573453780,-262.850828,0.00019997,2]
[363090781,1748573453790,-262.850828,0.00019997,2]
[363090783,1748573453801,-151.0,0.00019997,2]
[363090785,1748573453811,-151.0,0.00019997,2]
[363090788,1748573453821,-555.568175,0.00019997,2]
[363090789,1748573453831,-151.0,0.00019997,2]
[363090792,1748573453840,-555.568175,0.00019997,2]
[363090793,1748573453850,-287.843736,0.00019997,2]
[363090796,1748573453860,-287.843736,0.00019997,2]
[363090798,1748573453869,-151.0,0.00019997,2]
[363090800,1748573453879,-151.0,0.00019997,2]
[363090802,1748573453889,-151.0,0.00019997,2]
[363090804,1748573453899,-151.0,0.00019997,2]
[363090805,1748573453910,-865.548523,0.00019997,2]
[363090808,1748573453920,-865.548523,0.00019997,2]
[363090809,1748573453931,-259.244812,0.00019997,2]
[363090811,1748573453941,-259.244812,0.00019997,2]
[363090814,1748573453951,-151.0,0.00019997,2]
[363090816,1748573453960,-151.0,0.00019997,2]
[363090818,1748573453970,-151.0,0.00019997,2]
[363090820,1748573453982,-151.0,0.00019997,2]
[363090822,1748573453992,-422.051508,0.00019997,2]
[363090824,1748573454002,-422.051508,0.00019997,2]
[363090826,1748573454011,-497.109724,0.00019997,2]
[363090828,1748573454020,-497.109724,0.00019997,2]
[363090830,1748573454030,-151.468997,0.00019997,2]
[363090832,1748573454040,-151.0,0.00019997,2]
[363090834,1748573454051,-259.420876,0.00019997,2]
[363090835,1748573454061,-259.420876,0.00019997,2]
[363090845,1748573454145,-625.168653,0.00019997,2]
[363090848,1748573454163,-625.168653,0.00019997,2]
[363090849,1748573454172,-151.0,0.00019997,2]
[363090851,1748573454182,-856.196143,0.00019997,2]
[363090854,1748573454191,-856.196143,0.00019997,2]
[363090856,1748573454201,-151.0,0.00019997,2]
[363090858,1748573454210,-151.0,0.00019997,2]
[363090860,1748573454220,-168.474289,0.00019999,2]
[363090862,1748573454231,-168.474289,0.00019999,2]
[363090863,1748573454240,-151.0,0.00019999,2]
[363090865,1748573454250,-151.0,0.00019999,2]
[363090867,1748573454259,-260.507174,0.00019999,2]
[363090869,1748573454268,-260.507174,0.00019999,2]
[363090872,1748573454278,-1240.228968,0.00019999,2]
[363090874,1748573454287,-1240.228968,0.00019999,2]
[363090876,1748573454298,-250.32036309,0.0002,2]
[363090877,1748573454307,-1362.91608705,0.0002,30]
[363090879,1748573454316,-151.0,0.0002,2]
[363090881,1748573454326,-151.0,0.0002,2]
[363090883,1748573454335,-588.487475,0.0002,2]
[363090885,1748573454344,-588.487475,0.0002,2]
[363090887,1748573454354,-247.766992,0.0002,2]
[363090890,1748573454366,-247.766992,0.0002,2]
[363090892,1748573454376,-168.474289,0.0002,2]
[363090894,1748573454386,-168.474289,0.0002,2]
[363090896,1748573454396,-193.65212174,0.0002,2]
[363090898,1748573454405,-151.0,0.0002,2]
[363090900,1748573454414,-151.0,0.0002,2]
[363090902,1748573454423,-430.0,0.0002,2]
[363090904,1748573454432,-389.67092726,0.0002,2]
[363090906,1748573454441,-430.0,0.0002,2]
[363090908,1748573454451,-430.0,0.0002,2]
[363090910,1748573454460,-430.0,0.0002,2]
[363090911,1748573454469,-430.0,0.0002,2]
[363090913,1748573454479,-430.0,0.0002,2]
[363090914,1748573454487,-430.0,0.0002,2]
[363090916,1748573454497,-502.0,0.0002,2]
[363090918,1748573454506,-430.0,0.0002,2]
[363090919,1748573454515,-1153.0,0.0002,2]
[363090921,1748573454526,-437.75766194,0.0002,2]
[363090923,1748573454536,-430.0,0.0002,2]
[363090924,1748573454548,-430.0,0.0002,2]
[363090926,1748573454557,-430.0,0.0002,2]
[363090927,1748573454567,-430.0,0.0002,2]
[363090929,1748573454576,-3001.0,0.0002,2]
[363090931,1748573454586,-3001.0,0.0002,2]
[363090932,1748573454595,-3001.0,0.0002,2]
[363090934,1748573454604,-3001.0,0.0002,2]
[363090935,1748573454613,-3001.0,0.0002,2]
[363090937,1748573454622,-3001.0,0.0002,2]
[363090939,1748573454631,-3001.0,0.0002,2]
[363090940,1748573454641,-3001.0,0.0002,2]
[363090942,1748573454652,-3001.0,0.0002,2]
[363090943,1748573454661,-3001.0,0.0002,2]
[363090945,1748573454670,-309.56067402,0.0002,2]
[363090947,1748573454679,-430.0,0.0002,2]
[363090948,1748573454688,-430.0,0.0002,2]
[363090950,1748573454698,-442.86245648,0.0002,2]
[363090951,1748573454707,-205.5395508,0.0002,2]
[363090953,1748573454717,-430.0,0.0002,2]
[363090955,1748573454726,-1015.55,0.0002,2]
[363090957,1748573454736,-430.0,0.0002,2]
[363090958,1748573454746,-430.0,0.0002,2]
[363090960,1748573454756,-430.0,0.0002,2]
[363090962,1748573454765,-430.0,0.0002,2]
[363090963,1748573454774,-430.0,0.0002,2]
[363090965,1748573454784,-430.0,0.0002,2]
[363090967,1748573454794,-158.201362,0.0002,2]
[363090969,1748573454805,-430.0,0.0002,2]
[363090970,1748573454814,-591.44,0.0002,2]
[363090972,1748573454823,-151.0,0.0002,2]
[363090974,1748573454832,-430.0,0.0002,2]
[363090975,1748573454841,-190.96886689,0.0002,2]
[363090977,1748573454850,-151.0,0.0002,2]
[363090979,1748573454859,-430.0,0.0002,2]
[363090981,1748573454868,-430.0,0.0002,2]
[363090982,1748573454878,-430.0,0.0002,2]
[363090984,1748573454887,-287.843736,0.0002,2]
[363090986,1748573454897,-61922.12228858,0.0002,2]
[363090988,1748573454907,-287.843736,0.0002,2]
[363090989,1748573454916,-430.0,0.0002,2]
[363090991,1748573454926,-430.0,0.0002,2]
[363090992,1748573454935,-430.0,0.0002,2]
[363090994,1748573454944,-430.0,0.0002,2]
[363090996,1748573454954,-151.0,0.0002,2]
[363090997,1748573454963,-430.0,0.0002,2]
[363090999,1748573454972,-151.0,0.0002,2]
[363091001,1748573454981,-441.7967883,0.0002,2]
[363091002,1748573454990,-430.0,0.0002,2]
[363091004,1748573454999,-163.34314153,0.0002,2]
[363091006,1748573455008,-430.0,0.0002,2]
[363091008,1748573455018,-430.0,0.0002,2]
[363091009,1748573455027,-430.0,0.0002,2]
[363091011,1748573455036,-430.0,0.0002,2]
[363091013,1748573455047,-430.0,0.0002,2]
[363091014,1748573455056,-426.59985571,0.0002,2]
[363091016,1748573455066,-430.0,0.0002,2]
[363091018,1748573455079,-430.0,0.0002,2]
[363091020,1748573455088,-436.40434378,0.0002,2]
[363091021,1748573455097,-236.18474528,0.0002,2]
[363091023,1748573455107,-430.0,0.0002,2]
[363091025,1748573455117,-151.0,0.0002,2]
[363091027,1748573455126,-490.22019593,0.0002,2]
[363091028,1748573455135,-430.0,0.0002,2]
[363091030,1748573455145,-430.0,0.0002,2]
[363091032,1748573455154,-430.0,0.0002,2]
[363091034,1748573455163,-349.03693017,0.0002,2]
[363091035,1748573455173,-151.0,0.0002,2]
[363091037,1748573455181,-430.0,0.0002,2]
[363091039,1748573455190,-865.548523,0.0002,2]
[363091040,1748573455199,-430.0,0.0002,2]
[363091042,1748573455207,-865.548523,0.0002,2]
[363091044,1748573455218,-430.0,0.0002,2]
[363091045,1748573455227,-259.244812,0.0002,2]
[363091047,1748573455236,-430.0,0.0002,2]
[363091049,1748573455245,-259.244812,0.0002,2]
[363091050,1748573455255,-430.0,0.0002,2]
[363091052,1748573455264,-441.25111477,0.0002,2]
[363091054,1748573455274,-430.0,0.0002,2]
[363091056,1748573455283,-437.83333337,0.0002,2]
[363091057,1748573455292,-430.0,0.0002,2]
[363091059,1748573455303,-493.71,0.0002,2]
[363091061,1748573455312,-430.0,0.0002,2]
[363091063,1748573455322,-522.03109554,0.0002,2]
[363091064,1748573455332,-430.0,0.0002,2]
[363091066,1748573455341,-651.13,0.0002,2]
[363091068,1748573455350,-444.68064331,0.0002,2]
[363091069,1748573455359,-430.0,0.0002,2]
[363091071,1748573455368,-694.82517684,0.0002,2]
[363091073,1748573455377,-430.0,0.0002,2]
[363091075,1748573455386,-446.39165999,0.0002,2]
[363091076,1748573455396,-430.0,0.0002,2]
[363091078,1748573455405,-430.0,0.0002,2]
[363091080,1748573455414,-430.0,0.0002,2]
[363091081,1748573455423,-430.0,0.0002,2]
[363091083,1748573455432,-430.0,0.0002,2]
[363091085,1748573455442,-430.0,0.0002,2]
[363091087,1748573455452,-430.0,0.0002,2]
[363091088,1748573455463,-204.76083194,0.0002,2]
[363091090,1748573455472,-430.0,0.0002,2]
[363091092,1748573455482,-454.22348103,0.0002,2]
[363091093,1748573455491,-485.53499075,0.0002,2]
[363091095,1748573455500,-430.0,0.0002,2]
[363091097,1748573455510,-430.0,0.0002,2]
[363091098,1748573455519,-430.0,0.0002,2]
[363091100,1748573455529,-276.28799631,0.0002,2]
[363091102,1748573455538,-430.0,0.0002,2]
[363091109,1748573455625,-444.35163942,0.0002,2]
[363091111,1748573455635,-430.0,0.0002,2]
[363091112,1748573455644,-481.23028895,0.0002,2]
[363091114,1748573455653,-430.0,0.0002,2]
[363091116,1748573455663,-430.0,0.0002,2]
[363091118,1748573455672,-430.0,0.0002,2]
[363091119,1748573455682,-151.0,0.0002,2]
[363091121,1748573455691,-430.0,0.0002,2]
[363091123,1748573455702,-430.0,0.0002,2]
[363091124,1748573455711,-151.0,0.0002,2]
[363091126,1748573455721,-430.0,0.0002,2]
[363091128,1748573455730,-151.0,0.0002,2]
[363091130,1748573455740,-430.0,0.0002,2]
[363091131,1748573455750,-2283.15,0.0002,2]
[363091133,1748573455760,-430.0,0.0002,2]
[363091135,1748573455771,-151.0,0.0002,2]
[363091137,1748573455780,-430.0,0.0002,2]
[363091138,1748573455790,-430.0,0.0002,2]
[363091140,1748573455802,-430.0,0.0002,2]
[363091142,1748573455812,-422.051508,0.0002,2]
[363091143,1748573455821,-430.0,0.0002,2]
[363091145,1748573455831,-430.0,0.0002,2]
[363091147,1748573455840,-1697.19,0.0002,2]
[363091148,1748573455849,-3798.2,0.0002,2]
[363091150,1748573455858,-422.051508,0.0002,2]
[363091152,1748573455868,-430.0,0.0002,2]
[363091154,1748573455877,-430.0,0.0002,2]
[363091155,1748573455887,-464.57151537,0.0002,2]
[363091157,1748573455897,-430.0,0.0002,2]
[363091159,1748573455906,-430.0,0.0002,2]
[363091160,1748573455916,-430.0,0.0002,2]
[363091162,1748573455925,-430.0,0.0002,2]
[363091164,1748573455936,-430.0,0.0002,2]
[363091166,1748573455946,-430.0,0.0002,2]
[363091167,1748573455955,-430.0,0.0002,2]
[363091169,1748573455964,-430.0,0.0002,2]
[363091171,1748573455973,-818.5,0.0002,2]
[363091172,1748573455982,-4950.37,0.0002,2]
[363091174,1748573455991,-438.27894563,0.0002,2]
[363091176,1748573456001,-430.0,0.0002,2]
[363091178,1748573456010,-430.0,0.0002,2]
[363091179,1748573456019,-283.90510904,0.0002,2]
[363091181,1748573456030,-596.2,0.0002,2]
[363091183,1748573456040,-504.36,0.0002,2]
[363091185,1748573456051,-430.0,0.0002,2]
[363091186,1748573456060,-430.0,0.0002,2]
[363091188,1748573456072,-473.04,0.0002,2]
[363091190,1748573456082,-598.36,0.0002,2]
[363091192,1748573456091,-430.0,0.0002,2]
[363091194,1748573456100,-432.42674208,0.0002,2]
[363091195,1748573456111,-430.0,0.0002,2]
[363091197,1748573456121,-3521.42,0.0002,2]
[363091198,1748573456131,-430.0,0.0002,2]
[363091199,1748573456140,-430.0,0.0002,2]
[363091200,1748573456151,-455.25,0.0002,2]
[363091201,1748573456160,-430.0,0.0002,2]
[363091202,1748573456169,-430.0,0.0002,2]
[363091203,1748573456178,-704.27,0.0002,2]
[363091204,1748573456187,-4581.47,0.0002,2]
[363091205,1748573456195,-430.0,0.0002,2]
[363091206,1748573456204,-430.0,0.0002,2]
[363091207,1748573456213,-430.0,0.0002,2]
[363091208,1748573456222,-430.0,0.0002,2]
[363091209,1748573456231,-856.93,0.0002,2]
[363091210,1748573456240,-430.0,0.0002,2]
[363091211,1748573456249,-430.0,0.0002,2]
[363091212,1748573456258,-430.0,0.0002,2]
[363091213,1748573456267,-914.35,0.0002,2]
[363091214,1748573456275,-2859.7,0.0002,2]
[363091215,1748573456284,-430.0,0.0002,2]
[363091216,1748573456293,-1248.41,0.0002,2]
[363091217,1748573456303,-497.109724,0.0002,2]
[363091218,1748573456312,-694.82517684,0.0002,2]
[363091219,1748573456321,-1247.05,0.0002,2]
[363091220,1748573456330,-497.109724,0.0002,2]
[363091221,1748573456339,-430.0,0.0002,2]
[363091222,1748573456347,-430.0,0.0002,2]
[363091223,1748573456356,-430.0,0.0002,2]
[363091224,1748573456365,-430.0,0.0002,2]
[363091225,1748573456373,-430.0,0.0002,2]
[363091226,1748573456382,-430.0,0.0002,2]
[363091227,1748573456392,-708.84,0.0002,2]
[363091228,1748573456401,-430.0,0.0002,2]
[363091229,1748573456409,-430.0,0.0002,2]
[363091230,1748573456419,-444.57269517,0.0002,2]
[363091231,1748573456427,-3595.1,0.0002,2]
[363091232,1748573456436,-430.0,0.0002,2]
[363091233,1748573456445,-430.0,0.0002,2]
[363091234,1748573456455,-430.0,0.0002,2]
[363091235,1748573456464,-430.0,0.0002,2]
[363091236,1748573456472,-430.0,0.0002,2]
[363091237,1748573456481,-430.0,0.0002,2]
[363091238,1748573456490,-430.0,0.0002,2]
[363091239,1748573456499,-430.0,0.0002,2]
[363091240,1748573456508,-449.37270301,0.0002,2]
[363091241,1748573456517,-1338.1,0.0002,2]
[363091242,1748573456526,-430.0,0.0002,2]
[363091243,1748573456535,-1468.23,0.0002,2]
[363091244,1748573456544,-430.0,0.0002,2]
[363091245,1748573456556,-430.0,0.0002,2]
[363091246,1748573456565,-430.0,0.0002,2]
[363091247,1748573456574,-430.0,0.0002,2]
[363091248,1748573456583,-430.0,0.0002,2]
[363091249,1748573456592,-430.0,0.0002,2]
[363091250,1748573456602,-430.0,0.0002,2]
[363091251,1748573456611,-911.27,0.0002,2]
[363091252,1748573456620,-430.0,0.0002,2]
[363091253,1748573456629,-430.0,0.0002,2]
[363091254,1748573456638,-1549.3,0.0002,2]
[363091255,1748573456648,-151.0,0.0002,2]
[363091256,1748573456657,-151.0,0.0002,2]
[363091257,1748573456666,-430.0,0.0002,2]
[363091258,1748573456674,-430.0,0.0002,2]
[363091259,1748573456684,-430.0,0.0002,2]
[363091260,1748573456692,-430.0,0.0002,2]
[363091261,1748573456701,-2031.41,0.0002,2]
[363091262,1748573456710,-1879.59,0.0002,2]
[363091263,1748573456718,-430.0,0.0002,2]
[363091264,1748573456727,-430.0,0.0002,2]
[363091265,1748573456736,-430.0,0.0002,2]
[363091266,1748573456744,-503.58,0.0002,2]
[363091267,1748573456753,-259.420876,0.0002,2]
[363091268,1748573456762,-430.0,0.0002,2]
[363091269,1748573456771,-929.75,0.0002,2]
[363091270,1748573456780,-259.420876,0.0002,2]
[363091271,1748573456790,-430.0,0.0002,2]
[363091272,1748573456802,-430.0,0.0002,2]
[363091273,1748573456813,-561.53,0.0002,2]
[363091274,1748573456823,-430.0,0.0002,2]
[363091275,1748573456833,-430.0,0.0002,2]
[363091276,1748573456843,-430.0,0.0002,2]
[363091277,1748573456852,-625.168653,0.0002,2]
[363091278,1748573456862,-430.0,0.0002,2]
[363091279,1748573456872,-625.168653,0.0002,2]
[363091280,1748573456883,-430.0,0.0002,2]
[363091281,1748573456972,-430.0,0.0002,2]
[363091282,1748573456981,-430.0,0.0002,2]
[363091283,1748573456991,-151.0,0.0002,2]
[363091284,1748573457000,-151.0,0.0002,2]
[363091285,1748573457010,-856.196143,0.0002,2]
[363091286,1748573457020,-856.196143,0.0002,2]
[363091287,1748573457030,-856.196143,0.0002,2]
[363091288,1748573457040,-856.196143,0.0002,2]
[363091289,1748573457056,-430.0,0.0002,2]
[363091290,1748573457067,-445.23652448,0.0002,2]
[363091291,1748573457080,-527.67,0.0002,2]
[363091292,1748573457090,-430.0,0.0002,2]
[363091293,1748573457100,-661.88,0.0002,2]
[363091294,1748573457111,-430.0,0.0002,2]
[363091295,1748573457121,-430.0,0.0002,2]
[363091296,1748573457131,-2717.29,0.0002,2]
[363091298,1748573457141,-430.0,0.0002,2]
[363091300,1748573457152,-430.0,0.0002,2]
[363091302,1748573457162,-3355.05,0.0002,2]
[363091304,1748573457172,-430.0,0.0002,2]
[363091306,1748573457181,-434.49569649,0.0002,7]
[363091308,1748573457190,-430.0,0.0002,2]
[363091310,1748573457199,-430.0,0.0002,2]
[363091313,1748573457209,-430.0,0.0002,2]
[363091315,1748573457219,-430.0,0.0002,2]
[363091317,1748573457229,-430.0,0.0002,2]